Cogmind - Beta 16 @@@ ROGUE MODE // 2025.11.24 @ 23:27:50 Player: AngelSpirit Result: Destroyed by C-35 Carver with Carbide Saw Performance ------------- Evolutions (5) 2500 Regions Visited (15) 3000 Robots Destroyed (205) 1025 Value Destroyed (9071) 9071 Prototype IDs (41) 820 Alien Tech Used (0) 0 Bonus (3148) 3148 TOTAL SCORE: 19564 Bonus ------- High Alert Combat Kills 1236 Follower Combat Kills 612 Entered Garrisons 400 Aligned with FarCom 300 Met Data Miner 300 Acquired ECA 300 Cogmind --------- Core Integrity 0/1000 Matter 194/300 Energy 64/100 System Corruption 6% Temperature Cool (2) Movement Core (100) Ox1 Location -5/Factory Parts ------- > --- POWER (2) -------- (None) > --- PROPULSION (5) --- (None) > --- UTILITY (7) ------ Hacking Suite > --- WEAPON (3) ------- Backup Laser III Backup Laser III > --- INVENTORY (5) ---- Matter Compressor (250) Advanced Signal Interpreter Encrypted Comm Array KE Penetrator CPS Tube (2) Peak State ------------ > --- POWER ------------ Hybrid Antimatter Reactor > --- PROPULSION ------- Armored Huge Wheel Armored Huge Wheel > --- UTILITY ---------- Large Storage Unit Core Analyzer Improved Core Shielding Layered Medium Armor Plating Hacking Suite > --- WEAPON ----------- Advanced Plasma Cannon Enhanced Gauss Cannon Improved Proton Missile Launcher > --- INVENTORY -------- Cooled Ion Engine Cooled Ion Engine Improved Deuterium Engine Improved Heavy Treads Armored Huge Wheel Compact Matter Pod Structural Scanner Cloak of Protection Hacking Suite Hacking Suite Improved Proton Missile Launcher Improved Proton Missile Launcher Improved Proton Missile Launcher [Rating: 64] Favorites ----------- Power Cooled Ion Engine Engine Cooled Ion Engine Power Core Light Nuclear Core Reactor Hybrid Antimatter Reactor Propulsion Armored Huge Wheel Treads Light Treads Leg Carbon-fiber Leg Wheel Armored Huge Wheel Hover Unit Antigrav System Flight Unit Nuclear Pulse Array Utility Large Storage Unit Device Coolant Injector Storage Large Storage Unit Processor Improved Signal Interpreter Hackware Hacking Suite Protection Improved Light Armor Plating Weapon Improved Proton Missile Launcher Energy Gun Heavy Laser Energy Cannon Advanced Plasma Cannon Ballistic Gun Gauss Rifle Ballistic Cannon Light Cannon Launcher Improved Proton Missile Launcher Impact Weapon Shock Maul Slashing Weapon Axe Build | -11 -10 -10 -10 -9 -8 -8 -8 -7 -7 -6 -6 -6 -6 -5 -5 ------- Run | Yrd Mat Min Exi Min Mat Gar Mat Fac Gar Fac Low Low Dat Pro Fac Slots Evolved 10 | . . . . . 4 . . 2 . 2 . . . . 2 Power 1 | . . . . . . . . . . 1 . . . . . Propulsion 3 | . . . . . 2 . . . . 1 . . . . . Utility 5 | . . . . . 2 . . 1 . . . . . . 2 Weapon 1 | . . . . . . . . 1 . . . . . . . Parts Attached 141 | 6 10 . 1 5 9 8 11 4 23 23 8 16 . 2 15 Power 19 | 1 . . . 2 2 . . . 3 4 2 3 . 2 . Engine 14 | 1 . . . 2 2 . . . 2 2 2 3 . . . Core 4 | . . . . . . . . . . 2 . . . 2 . Reactor 1 | . . . . . . . . . 1 . . . . . . Propulsion 32 | 2 3 . . . 3 4 3 1 2 4 . 7 . . 3 Treads 3 | 2 . . . . . . . . . . . . . . 1 Leg 12 | . . . . . . 4 1 . . . . 7 . . . Wheel 15 | . 3 . . . 3 . 2 1 2 4 . . . . . Hover 1 | . . . . . . . . . . . . . . . 1 Flight 1 | . . . . . . . . . . . . . . . 1 Utility 51 | 1 4 . 1 2 3 3 3 2 9 9 3 2 . . 9 Device 16 | . 1 . 1 . 1 . . 1 2 2 2 1 . . 5 Storage 6 | 1 2 . . 2 . . 1 . . . . . . . . Processor 3 | . . . . . . . . . 1 2 . . . . . Hackware 8 | . . . . . . 1 1 1 . 1 . . . . 4 Protection 18 | . 1 . . . 2 2 1 . 6 4 1 1 . . . Artifact . | . . . . . . . . . . . . . . . . Weapon 39 | 2 3 . . 1 1 1 5 1 9 6 3 4 . . 3 Energy Gun 10 | 1 . . . . . . 4 . 1 1 . 2 . . 1 Energy Cannon 2 | . . . . . . . . . 1 1 . . . . . Ballistic Gun 8 | 1 . . . . . 1 . . 4 . . 1 . . 1 Ballistic Cannon 11 | . 1 . . 1 1 . 1 1 1 1 3 . . . 1 Launcher 6 | . 2 . . . . . . . 1 2 . 1 . . . Special Weapon . | . . . . . . . . . . . . . . . . Impact Weapon 1 | . . . . . . . . . . 1 . . . . . Slashing Weapon 1 | . . . . . . . . . 1 . . . . . . Piercing Weapon . | . . . . . . . . . . . . . . . . Special Melee Weapon . | . . . . . . . . . . . . . . . . Unidentified Prototypes 7 | . . . . . 1 . 3 . 1 2 . . . . . Parts Lost 63 | . . . . 1 1 4 . . 13 7 3 12 . 1 21 Power 7 | . . . . . . . . . 1 1 . 3 . . 2 Propulsion 20 | . . . . . 1 3 . . 2 2 . 4 . 1 7 Utility 15 | . . . . . . 1 . . 3 1 1 1 . . 8 Weapon 21 | . . . . 1 . . . . 7 3 2 4 . . 4 Highest Loss Streak 10 | . . . . 1 1 2 . . 8 3 1 4 . 1 10 To Critical Strikes 1 | . . . . . . . . . . 1 . . . . . Average Backups 10 | . 5 10 9 9 7 8 10 10 11 10 13 13 14 12 7 Power . | . . . . . 1 2 2 2 2 . . . . . . Propulsion 1 | . 1 3 3 3 . . 1 2 2 1 1 1 1 1 . Utility 6 | . 2 4 3 4 3 3 4 5 5 6 10 10 10 9 5 Weapon 1 | . 1 3 3 2 2 2 2 1 1 2 1 . 1 . . Tool/Special . | . . . . . . . . . . . . . . . . Unused Backups 16 | . . . . 1 2 2 2 . . 2 2 . . . 5 Power 1 | . . . . . 1 . . . . . . . . . . Propulsion 1 | . . . . . . . 1 . . . . . . . . Utility 12 | . . . . 1 1 2 1 . . 2 1 . . . 4 Weapon 1 | . . . . . . . . . . . 1 . . . . Tool/Special 1 | . . . . . . . . . . . . . . . 1 Average Slot Usage (%) 83 | . 98 100 100 100 97 91 77 74 77 77 83 86 82 87 55 Engine 7 | . 14 14 14 14 9 9 9 7 4 5 8 8 13 8 . Core 1 | . . . . . . . . . . 2 3 . . 4 5 Treads 1 | . 19 . . . . . . . . . . . . . . Leg 8 | . . . . . . 24 11 . . . . 21 33 27 10 Wheel 12 | . 8 28 28 28 35 9 12 15 14 15 20 3 . . . Device 5 | . 12 14 14 14 9 . . . . 6 2 5 6 4 3 Storage 7 | . 14 14 14 14 9 9 9 7 7 6 6 6 6 6 2 Processor 2 | . . . . . . . . . 2 3 6 6 6 6 3 Hackware 7 | . . . . . . 8 9 13 11 7 8 6 6 6 14 Protection 6 | . . . . . 15 11 9 7 11 6 5 5 6 6 2 Energy Gun 2 | . 1 . . . . . 7 7 1 . . 4 2 8 3 Energy Cannon 2 | . . . . . . . . . 1 7 6 . . . . Ballistic Gun 2 | . 3 . . . . 1 6 7 6 3 . 3 . . . Ballistic Cannon 7 | . 10 14 14 20 17 16 3 7 3 . 5 6 . 5 3 Launcher 4 | . 12 14 14 7 . . . . 4 5 4 3 . . . Peak Build Rating 64 | 6 10 10 10 10 20 37 43 51 64 64 62 64 55 59 58 Average Rating 41 | 4 9 10 9 9 18 27 40 49 51 55 58 55 47 51 40 On Entrance 33 | . 6 10 10 9 9 20 37 43 50 61 59 61 59 55 45 Avg Prop Armor Cover (%) 10 | . . . . . . 10 . . . . . 10 . . 4 Naked Turns . | . . . . . . . . . . . . . . . . Heaviest Build 68 | 13 24 24 24 33 47 57 57 67 68 67 67 68 54 62 58 Greatest Support 80 | 40 40 20 20 20 40 60 65 56 56 66 66 80 75 75 75 Greatest Overweight (x) 3 | . 1 1 1 1 1 3 1 2 1 2 1 2 . 1 2 Average Overweight (x) . | . . 1 1 1 . . . 1 . . . . . . . Largest Inventory Capacity 25 | 8 25 10 10 15 15 15 15 15 15 15 15 15 15 15 15 Average Capacity 14 | 7 8 10 10 14 15 15 15 15 15 15 15 15 15 15 10 Most Carried 15 | . 10 10 10 14 11 14 15 15 15 15 15 15 15 15 12 Average Carried 12 | . 5 10 9 11 10 11 14 14 13 12 14 14 15 13 8 Final Capacity 15 | 8 10 10 10 15 15 15 15 15 15 15 15 15 15 15 5 Final Carried 15 | . 10 10 10 12 10 12 15 15 15 13 15 14 15 13 5 Class Distribution -------------------- 27% | Mutant 16% | Skirmisher 13% | Scavenger-Mutant 11% | Hacker-Skirmisher 8% | Scavenger-Tank 5% | Hacker-Mutant 5% | Tank 4% | Bomber Dominant Class ---------------- Mutant | -10/Materials Mutant | -10/Mines Mutant | -10/Exiles Skirmisher | -9/Mines Scavenger-Skirmisher | -8/Materials Mutant | -8/Garrison Mutant | -8/Materials Hacker-Skirmisher | -7/Factory Hacker-Skirmisher | -7/Garrison Skirmisher | -6/Factory Tank | -6/Lower Caves Scavenger-Tank | -6/Lower Caves Scavenger-Mutant | -6/Data Miner Scavenger-Mutant | -5/Proximity Caves Hacker-Mutant | -5/Factory Resources | -11 -10 -10 -10 -9 -8 -8 -8 -7 -7 -6 -6 -6 -6 -5 -5 ----------- Run | Yrd Mat Min Exi Min Mat Gar Mat Fac Gar Fac Low Low Dat Pro Fac Matter Collected 6927 | 260 512 . . 363 350 601 495 . 2118 840 252 848 . 149 139 Remotely . | . . . . . . . . . . . . . . . . Salvage Created 7911 | . 356 . . 121 127 458 967 . 1894 1656 680 1226 . 172 254 Parts 418 | . 44 . . 15 4 43 54 . 88 78 21 40 . 19 12 Haulers Intercepted 7 | . . . . . 1 . 4 . . 2 . . . . . Recyclers Shooed 2 | . . . . . . . . . . 1 . . . . 1 Parts Field Recycled . | . . . . . . . . . . . . . . . . Retrieved Matter . | . . . . . . . . . . . . . . . . Parts Self-Destructed 54 | . . . . . . . . . . . 16 21 . 17 . Prevented 35 | . . . . . . . . . . . 12 23 . . . Parts Restored . | . . . . . . . . . . . . . . . . Kills | -11 -10 -10 -10 -9 -8 -8 -8 -7 -7 -6 -6 -6 -6 -5 -5 ------- Run | Yrd Mat Min Exi Min Mat Gar Mat Fac Gar Fac Low Low Dat Pro Fac Combat Hostiles Destroyed 171 | . 18 . . 9 2 21 14 . 31 22 14 23 . 8 9 Guns 41 | . 3 . . . . . 7 . 13 4 . 3 . 6 5 Cannons 55 | . 4 . . 3 . 13 1 . 5 9 7 11 . 2 . AOE 66 | . 11 . . 6 2 8 6 . 11 6 5 7 . . 4 Classes Destroyed 20 | . 5 . . 1 1 2 1 . 6 3 . 1 . . . Worker 7 | . 4 . . . . . 2 . . 1 . . . . . Builder 8 | . 2 . . . . . 3 . . 3 . . . . . Hauler 7 | . . . . . 1 . 4 . . 2 . . . . . Recycler 1 | . . . . . . . . . . 1 . . . . . Mechanic 1 | . . . . . . . . . . 1 . . . . . Operator 1 | . . . . . . . 1 . . . . . . . . Watcher 7 | . 2 . . . . . 4 . . 1 . . . . . Swarmer 69 | . 12 . . 5 . 12 3 . 7 6 6 4 . 8 6 Cutter 3 | . . . . . . . . . 3 . . . . . . Grunt 44 | . 6 . . 3 2 3 7 . 2 4 4 12 . . 1 Brawler 6 | . . . . 1 . . . . 2 . 1 2 . . . Duelist 4 | . . . . . . . . . 1 1 1 1 . . . Sentry 21 | . . . . . . 5 4 . 7 2 1 2 . . . Demolisher 2 | . . . . . . 1 . . . . . 1 . . . Specialist 2 | . . . . . . . . . 2 . . . . . . Hunter 7 | . . . . . . . . . 2 5 . . . . . Programmer 9 | . . . . . . . . . 3 3 1 . . . 2 Heavy 1 | . . . . . . . . . . 1 . . . . . Behemoth 2 | . . . . . . . . . 1 . . 1 . . . Thug 1 | . . . . . . . . . 1 . . . . . . Butcher 1 | . . . . . . . . . 1 . . . . . . Mutant 1 | . . . . . . . . . . . . 1 . . . Best Kill Streak 9 | . 6 . . 3 3 8 7 . 4 9 3 4 . 4 5 Combat Bots Only 8 | . 3 . . 3 2 8 5 . 4 7 3 4 . 4 5 Max Kills in Single Turn 4 | . 4 . . 2 3 3 3 . 4 3 2 3 . 2 4 Gunslinging . | . . . . . . . . . . . . . . . . Exploded 4 | . 3 . . 2 2 3 2 . 4 1 2 2 . . 4 Melee . | . . . . . . . . . . . . . . . . Uniques/NPCs Destroyed . | . . . . . . . . . . . . . . . . Combat | -11 -10 -10 -10 -9 -8 -8 -8 -7 -7 -6 -6 -6 -6 -5 -5 -------- Run | Yrd Mat Min Exi Min Mat Gar Mat Fac Gar Fac Low Low Dat Pro Fac Hostile Shots Fired 1201 | . 46 . . 21 14 63 50 . 387 138 40 154 . 52 236 Missed 427 | . 14 . . 6 3 18 19 . 155 43 17 64 . 11 77 Hits 774 | . 32 . . 15 11 45 31 . 232 95 23 90 . 41 159 Melee 8 | . . . . . . . . . 2 . . . . . 6 Projectile 766 | . 32 . . 15 11 45 31 . 230 95 23 90 . 41 153 AOE 9 | . . . . . . 3 . . 1 . . 4 . . 1 Critical Strikes 28 | . . . . . 1 2 . . 3 3 3 3 . 1 12 Damage Taken 12107 | . 327 . . 218 181 597 448 . 2685 1961 386 1644 . 630 3030 Core 1902 | . 28 . . 66 16 33 15 . 212 270 32 184 . 41 1005 Absorbed by Shields 124 | . 124 . . . . . . . . . . . . . . Reduced by Siege Mode 30 | . . . . . . . . . . . . . . . 30 Redirected to Shielding 25 | . . . . . . . . . 25 . . . . . . Regen/Repaired (Parts) 229 | . . . . . . . . . . 229 . . . . . Core Remaining (%) 71 | 100 . . . 62 . . 88 . 69 . . . . 38 . Volleys Fired 656 | . 37 . . 28 9 69 65 1 219 102 27 53 . 13 33 Largest 3 | . 2 . . 2 2 2 2 1 3 3 3 3 . 3 2 Hottest 210 | . 70 . . 63 70 67 87 28 188 174 210 161 . 182 138 Shots Fired 1059 | . 64 . . 43 18 106 109 1 313 158 55 119 . 33 40 Gun 398 | . 28 . . . . 1 81 1 166 46 . 24 . 20 31 Cannon 533 | . 16 . . 28 17 100 22 . 107 97 46 78 . 13 9 Launcher 128 | . 20 . . 15 1 5 6 . 40 15 9 17 . . . Special . | . . . . . . . . . . . . . . . . Kinetic 659 | . 37 . . 28 17 101 59 1 239 46 15 94 . 13 9 Thermal 169 | . 7 . . . . . . . 21 84 6 . . 20 31 Explosive 58 | . 20 . . 15 1 5 6 . 11 . . . . . . Electromagnetic 173 | . . . . . . . 44 . 42 28 34 25 . . . Robot Hit Streak 24 | . 6 . . 4 5 11 13 4 24 11 12 9 . 9 5 Robot Miss Streak 7 | . 7 . . 7 3 3 4 . 4 4 5 2 . 5 2 Penetration Max 1 | . . . . . . . 1 . 1 1 . . . . . Secondary Targets 3 | . 1 . . . . . 1 . . . . . . . 1 Max Gunslinging Chain 1 | . 1 . . . . . 1 . . . . . . . 1 Shots Hit Robots 584 | . 28 . . 10 7 40 78 1 197 83 37 70 . 13 20 Core Hits 367 | . 32 . . 13 4 29 47 . 93 50 27 52 . 8 12 Critical Kills 2 | . . . . . . . . . . 2 . . . . . Critical Parts Destroyed 9 | . . . . . . . . . 5 . . 4 . . . Critical Strikes 29 | . 1 . . . 1 6 1 . 8 2 . 8 . 1 1 Burn 2 | . . . . . . . . . . . . . . 1 1 Meltdown 2 | . . . . . . . . . . 2 . . . . . Destroy 11 | . . . . . . . . . 5 . . 6 . . . Blast 14 | . 1 . . . 1 6 1 . 3 . . 2 . . . Melee Attacks 30 | . . . . . . . . . 30 . . . . . . Impact . | . . . . . . . . . . . . . . . . Slashing 30 | . . . . . . . . . 30 . . . . . . Piercing . | . . . . . . . . . . . . . . . . Sneak Attacks . | . . . . . . . . . . . . . . . . Combat Hostiles . | . . . . . . . . . . . . . . . . Follow-up Attacks . | . . . . . . . . . . . . . . . . Damage Inflicted 21067 | . 1489 . . 596 309 1298 2018 17 6105 3251 1295 3295 . 332 1062 Guns 5918 | . 157 . . . . 19 1206 17 2712 747 . 351 . 211 498 Cannons 6727 | . 123 . . 117 182 875 226 . 1268 1556 810 1423 . 121 26 Explosions 7534 | . 1209 . . 479 127 404 586 . 1273 948 485 1521 . . 502 Melee 852 | . . . . . . . . . 852 . . . . . . Ramming 36 | . . . . . . . . . . . . . . . 36 Kinetic 8662 | . 216 . . 117 182 894 644 17 3720 747 351 1627 . 121 26 Thermal 2763 | . 64 . . . . . 132 . 186 1429 165 78 . 211 498 Explosive 3860 | . 1209 . . 479 127 404 454 . 664 21 . . . . 502 Electromagnetic 4894 | . . . . . . . 788 . 683 1054 779 1590 . . . Impact . | . . . . . . . . . . . . . . . . Slashing 852 | . . . . . . . . . 852 . . . . . . Piercing . | . . . . . . . . . . . . . . . . Highest Corruption 7 | . 1 1 1 1 . . . . 7 1 1 4 4 4 6 Average Corruption 2 | . 1 1 1 1 . . . . 6 1 1 2 4 4 4 Corruption Purged 2 | . . . . . . . . . . . . . . . 2 Corruption Blocked . | . . . . . . . . . . . . . . . . Effects 118 | . . 1 2 7 . . . . 37 13 8 23 3 13 11 Message Errors 23 | . . . 1 1 . . . . 8 2 2 5 . 1 3 Matter Fused 26 | . . . . . . . . . 7 3 . 8 1 3 4 Heat Flow Errors 12 | . . . . 2 . . . . 5 . . 4 . 1 . Energy Discharges 16 | . . . . 1 . . . . 4 3 2 1 . 2 3 Parts Fused 3 | . . . . . . . . . 1 1 . . 1 . . Data Loss (minor) 17 | . . 1 1 1 . . . . 4 1 4 2 . 3 . Data Loss (major) 10 | . . . . . . . . . 4 1 . 2 . 2 1 Misfires 2 | . . . . 1 . . . . . 1 . . . . . Alerts 9 | . . . . 1 . . . . 4 1 . 1 1 1 . Overload Shots . | . . . . . . . . . . . . . . . . Overflow Damage 409 | . 19 . . 7 . 58 9 . 22 35 13 48 . 6 192 Projectiles 124 | . 4 . . . . 58 . . 22 21 13 . . 6 . Explosions 285 | . 15 . . 7 . . 9 . . 14 . 48 . . 192 Melee . | . . . . . . . . . . . . . . . . Knockbacks 24 | . . . . 1 2 6 3 . 3 . 1 5 . 2 1 Impact . | . . . . . . . . . . . . . . . . Kinetic 24 | . . . . 1 2 6 3 . 3 . 1 5 . 2 1 Secondary . | . . . . . . . . . . . . . . . . Self-Inflicted Damage 693 | . 150 . . 102 . . 61 . 82 173 8 12 . . 105 Shots 23 | . 4 . . 3 . . 2 . 5 6 1 1 . . 1 Rammed 6 | . . . . . . . . . . . . . . . 6 Targets Rammed 8 | . . . . . . . . . . . . . . . 8 Kicked 2 | . . . . . . . . . . . . . . . 2 Crushed . | . . . . . . . . . . . . . . . . Highest Temperature 464 | . 142 . . 180 93 40 174 . 323 372 464 298 . 264 375 Average Temperature 86 | . 31 . . 71 43 12 46 . 85 98 112 95 . 116 142 Received Heat Transfer 1861 | . 64 . . . 117 144 162 . 468 48 84 405 . . 369 Effects 15 | . . . . . . . . . 3 3 3 . . 1 5 Shutdowns 5 | . . . . . . . . . . 3 1 . . . 1 Energy Bleed 3 | . . . . . . . . . . . 1 . . . 2 Interference 6 | . . . . . . . . . 2 . 1 . . 1 2 Matter Decay 1 | . . . . . . . . . 1 . . . . . . Siege Activations 1 | . . . . . . . . . . . . . . . 1 Total Turns 11 | . . . . . . . . . . . . . . . 11 Longest Duration 11 | . . . . . . . . . . . . . . . 11 Martial Activations . | . . . . . . . . . . . . . . . . Shielding Activations . | . . . . . . . . . . . . . . . . Robots Disrupted . | . . . . . . . . . . . . . . . . Combat Hostiles . | . . . . . . . . . . . . . . . . Robots Corrupted 7 | . . . . . . . . . 2 1 1 3 . . . Combat Hostiles 6 | . . . . . . . . . 2 1 1 2 . . . Parts Fried 29 | . . . . . . . 6 . 8 9 3 3 . . . Impact Corruptions 1 | . . . . . . . . . . . . . . . 1 Robots Melted 3 | . . . . . . . . . . 2 1 . . . . Combat Hostiles 3 | . . . . . . . . . . 2 1 . . . . Parts Melted 9 | . . . . . . . . . . 7 . . . . 2 Heat Transferred 4478 | . 185 . . . . . 300 . 250 2000 200 100 . 481 962 Parts Sabotaged . | . . . . . . . . . . . . . . . . Parts Stolen . | . . . . . . . . . . . . . . . . Parts Stripped . | . . . . . . . . . . . . . . . . Power Chain Reactions 17 | . . . . . . . 2 . 6 4 2 3 . . . Alert | -11 -10 -10 -10 -9 -8 -8 -8 -7 -7 -6 -6 -6 -6 -5 -5 ------- Run | Yrd Mat Min Exi Min Mat Gar Mat Fac Gar Fac Low Low Dat Pro Fac Maximum Alert Level 5 | . 1 . . . . 4 3 . 5 3 . . . . 1 Low Security (%) 30 | 100 26 100 . 100 100 15 . 100 10 . . . . . 98 Level 1 12 | . 73 . . . . 31 . . 5 . . . . . 1 Level 2 23 | . . . . . . 13 95 . 29 21 . . . . . Level 3 26 | . . . . . . 30 3 . 22 78 . . . . . Level 4 7 | . . . . . . 10 . . 26 . . . . . . Level 5 1 | . . . . . . . . . 4 . . . . . . High Security . | . . . . . . . . . . . . . . . . Max Security . | . . . . . . . . . . . . . . . . Peak Influence 1748 | . 342 121 . 83 79 1131 762 180 1748 962 . . . . 218 Initial 917 | . . 121 . . . 9 551 180 77 917 . . . . 25 Average 523 | . 218 115 . 21 30 572 538 146 846 815 . . . . 70 Influence Increases 7925 | . 694 . . 321 114 1242 617 . 1861 885 423 766 . 210 792 Destroy 0b10 Robot/C 3820 | . 360 . . 180 80 620 280 . 740 440 300 480 . 160 180 Destroy 0b10 Robot/NC 195 | . 40 . . . 10 . 70 . 30 45 . . . . . Destroy Leader 508 | . 64 . . 30 12 20 86 . 30 126 40 50 . 20 30 Allied During Kill 153 | . . . . 14 5 52 . . 63 . 8 11 . . . Trap Triggered on 0b10 20 | . . . . . . . . . 20 . . . . . . Successful Hack 190 | . 17 . . . . 51 35 . . 37 . . . . 50 Disable Machine 405 | . 45 . . 15 . 60 75 . 60 105 . . . . 45 Anti-Garrison Action 1050 | . . . . . . 350 . . 700 . . . . . . Destroy Structure 729 | . 168 . . 82 7 74 41 . 188 87 . . . . 82 Partial Spotted 15 | . . . . . . . 15 . . . . . . . . Lose Combat Pursuer 840 | . . . . . . 15 15 . 30 45 75 225 . 30 405 Influence Decreases 7717 | . 382 201 111 321 100 125 1350 288 223 1697 875 937 313 170 624 Entered New Map 2737 | . . 191 111 . . 5 580 218 33 831 347 93 313 . 15 Time Decay 3490 | . 382 10 . 311 90 . 470 70 . 646 478 624 . 160 249 Lost Part 620 | . . . . 10 10 40 . . 130 70 30 120 . 10 200 Lost Ally 420 | . . . . . . 80 . . 60 . 20 100 . . 160 Purge Threat 450 | . . . . . . . 300 . . 150 . . . . . Squads Dispatched 31 | . 3 . . . 2 . 1 1 . 11 . 1 . . 12 Investigation 10 | . 2 . . . 2 . . 1 . 2 . . . . 3 Extermination 8 | . . . . . . . . . . 5 . . . . 3 Reinforcement 11 | . 1 . . . . . 1 . . 3 . . . . 6 Assault 2 | . . . . . . . . . . 1 . 1 . . . Garrison . | . . . . . . . . . . . . . . . . Intercept . | . . . . . . . . . . . . . . . . Searches Triggered . | . . . . . . . . . . . . . . . . Data Miner Redirects 2 | . . . . . . . . . . . . . . . 2 Construction Impeded 2 | . . . . . . . 1 . . 1 . . . . . Haulers Reinforced 2 | . . . . . . . . . . 1 . . . . 1 Active Scanning Responses . | . . . . . . . . . . . . . . . . Cargo Convoy Interrupts 1 | . . . . . . . . . . . . . . . 1 Stealth | -11 -10 -10 -10 -9 -8 -8 -8 -7 -7 -6 -6 -6 -6 -5 -5 --------- Run | Yrd Mat Min Exi Min Mat Gar Mat Fac Gar Fac Low Low Dat Pro Fac Distress Signals 8 | . 2 . . . 1 . 4 . . . . . . . 1 Communications Jammed . | . . . . . . . . . . . . . . . . Distress Signals . | . . . . . . . . . . . . . . . . Times Spotted 269 | . 23 . . 10 6 28 22 . 34 26 20 36 . 11 53 Peak Tracking Total 11 | . 5 . . 3 3 6 5 1 6 4 7 5 . 5 11 Tactical Retreats 25 | . . . . . . 1 1 . 2 1 2 8 . 1 9 Traps | -11 -10 -10 -10 -9 -8 -8 -8 -7 -7 -6 -6 -6 -6 -5 -5 ------- Run | Yrd Mat Min Exi Min Mat Gar Mat Fac Gar Fac Low Low Dat Pro Fac Traps Triggered 26 | . 3 . . . . 9 . . 10 3 . . . . 1 Indirectly 2 | . . . . . . . . . 2 . . . . . . Trap Hack Attempts . | . . . . . . . . . . . . . . . . Triggered . | . . . . . . . . . . . . . . . . Disarmed . | . . . . . . . . . . . . . . . . Reprogrammed . | . . . . . . . . . . . . . . . . Reused 2 | . . . . . . . . . 2 . . . . . . Traps Extracted . | . . . . . . . . . . . . . . . . Installed 3 | . . . . . . . 1 . 2 . . . . . . Triggered 2 | . . . . . . . . . 2 . . . . . . Most Traps Carried 3 | . . . . 3 3 3 3 2 2 . . . . . . Machines | -11 -10 -10 -10 -9 -8 -8 -8 -7 -7 -6 -6 -6 -6 -5 -5 ---------- Run | Yrd Mat Min Exi Min Mat Gar Mat Fac Gar Fac Low Low Dat Pro Fac Machines Disabled 40 | . 3 . . 1 . 8 5 . 10 7 1 2 . . 3 Max in Single Turn 3 | . 1 . . 1 . 2 1 . 1 1 1 1 . . 3 Garrison Access 1 | . . . . . . . . . . . . . . . 1 Garrison Relay 10 | . . . . . . 4 . . 6 . . . . . . Machines Repaired . | . . . . . . . . . . . . . . . . Machines Dismantled . | . . . . . . . . . . . . . . . . Machines Sabotaged . | . . . . . . . . . . . . . . . . Overloaded Fab Kills . | . . . . . . . . . . . . . . . . Hacking | -11 -10 -10 -10 -9 -8 -8 -8 -7 -7 -6 -6 -6 -6 -5 -5 --------- Run | Yrd Mat Min Exi Min Mat Gar Mat Fac Gar Fac Low Low Dat Pro Fac Machines Accessed 58 | . 8 . 1 . 2 5 8 3 2 12 3 . 4 . 10 Terminals 29 | . 7 . . . 1 5 6 . 2 4 . . . . 4 Fabricators 6 | . . . . . . . . 2 . 2 . . . . 2 Repair Stations 1 | . . . . . . . . . . 1 . . . . . Recycling Units 7 | . 1 . . . . . 1 . . 3 . . . . 2 Scanalyzers 3 | . . . . . . . 1 . . 2 . . . . . Garrison Access 4 | . . . . . 1 . . 1 . . . . . . 2 Total Hacks 159 | . 18 . 1 . 3 16 24 6 2 28 9 . 30 . 22 Successful 92 | . 5 . 1 . 1 5 13 2 2 12 9 . 30 . 12 Failed 66 | . 13 . . . 2 11 11 4 . 15 . . . . 10 Catastrophic 11 | . 4 . . . . 4 2 . . 1 . . . . . Database Lockouts 1 | . . . . . . . . . . 1 . . . . . Manual 55 | . 17 . 1 . 2 . 13 . . 15 . . . . 7 Terminals 84 | . 16 . . . 2 16 21 . 2 16 . . . . 11 Fabricators 12 | . . . . . . . . 4 . 4 . . . . 4 Repair Stations 2 | . . . . . . . . . . 2 . . . . . Recycling Units 9 | . 2 . . . . . 1 . . 3 . . . . 3 Scanalyzers 5 | . . . . . . . 2 . . 3 . . . . . Garrison Access 7 | . . . . . 1 . . 2 . . . . . . 4 Terminal Hacks 63 | . 1 . 1 . . 5 8 . 2 4 9 . 30 . 3 Record 18 | . . . . . . . . . . . 7 . 11 . . Part Schematic 11 | . . . . . . . . . . . . . 11 . . Robot Schematic 5 | . . . . . . . . . . . . . 5 . . Robot Analysis 3 | . 1 . . . . . 2 . . . . . . . . Prototype ID Bank 3 | . . . . . . . . . . . . . 3 . . Open Door 4 | . . . . . . 1 . . 1 . 2 . . . . Branch Access Points 3 | . . . . . . . 2 . . 1 . . . . . Emergency Access Points 2 | . . . . . . 1 . . 1 . . . . . . Alert Level 2 | . . . . . . . 1 . . 1 . . . . . Unreport Threat 3 | . . . . . . . 2 . . 1 . . . . . Locate Traps 2 | . . . . . . . . . . 1 . . . . 1 Registered Components 1 | . . . . . . . . . . . . . . . 1 Zone Layout 2 | . . . . . . . 1 . . . . . . . 1 Garrison Registry 1 | . . . . . . 1 . . . . . . . . . Patrol Navigation 1 | . . . . . . 1 . . . . . . . . . Security Stations 1 | . . . . . . 1 . . . . . . . . . Proto ID Catalog 1 | . . . 1 . . . . . . . . . . . . Fabricator Hacks 5 | . . . . . . . . 1 . 1 . . . . 3 Network Status 3 | . . . . . . . . 1 . 1 . . . . 1 Build 2 | . . . . . . . . . . . . . . . 2 Repair Station Hacks 2 | . . . . . . . . . . 2 . . . . . Scan Component 1 | . . . . . . . . . . 1 . . . . . Repair 1 | . . . . . . . . . . 1 . . . . . Recycling Unit Hacks 6 | . 1 . . . . . 1 . . 2 . . . . 2 Report Inventory 4 | . . . . . . . 1 . . 2 . . . . 1 Retrieve Components 2 | . 1 . . . . . . . . . . . . . 1 Scanalyzer 2 | . . . . . . . 1 . . 1 . . . . . Retrieve Study 2 | . . . . . . . 1 . . 1 . . . . . Garrison Access Hacks 3 | . . . . . 1 . . 1 . . . . . . 1 Unlock Access 2 | . . . . . 1 . . 1 . . . . . . . Seal Access 1 | . . . . . . . . . . . . . . . 1 Unauthorized Hacks 10 | . 3 . . . . . 3 . . 2 . . . . 2 Terminals 10 | . 3 . . . . . 3 . . 2 . . . . 2 Assimilate 1 | . . . . . . . . . . . . . . . 1 Botnet 9 | . 3 . . . . . 3 . . 2 . . . . 1 Fabricators . | . . . . . . . . . . . . . . . . Repair Stations . | . . . . . . . . . . . . . . . . Recycling Units . | . . . . . . . . . . . . . . . . Scanalyzers . | . . . . . . . . . . . . . . . . Garrison Access . | . . . . . . . . . . . . . . . . Data Cores Recovered 2 | . . . . . 1 . 1 . . . . . . . . Used 1 | . . . . . . . 1 . . . . . . . . Hacking Detections 40 | . 7 . . . 2 5 7 2 1 10 . . . . 6 Full Trace Events 8 | . . . . . 1 1 . 1 . 2 . . . . 3 Feedback Events 2 | . . . . . . . . . . . . . . . 2 Corruption 1 | . . . . . . . . . . . . . . . 1 Hackware Fried 1 | . . . . . . . . . . . . . . . 1 Feedback Blocked . | . . . . . . . . . . . . . . . . Robot Schematics Acquired 5 | . . . . . . . . . . . . . 5 . . Robots Built . | . . . . . . . . . . . . . . . . Authchips . | . . . . . . . . . . . . . . . . Time . | . . . . . . . . . . . . . . . . Total Robot Build Rating . | . . . . . . . . . . . . . . . . Part Schematics Acquired 11 | . . . . . . . . . . . . . 11 . . Parts Built 4 | . . . . . . . . . . . . . . . 4 Authchips . | . . . . . . . . . . . . . . . . Time 152 | . . . . . . . . . . . . . . . 152 Total Part Build Rating 30 | . . . . . . . . . . . . . . . 30 Part Studies Acquired 2 | . . . . . . . 1 . . 1 . . . . . Parts Repaired 1 | . . . . . . . . . . 1 . . . . . Time 22 | . . . . . . . . . . 22 . . . . . Parts Recycled . | . . . . . . . . . . . . . . . . Recycled Matter . | . . . . . . . . . . . . . . . . Retrieved Matter . | . . . . . . . . . . . . . . . . Retrieved Components 11 | . 10 . . . . . . . . . . . . . 1 Parts Scanalyzed . | . . . . . . . . . . . . . . . . Part Schematics Acquired . | . . . . . . . . . . . . . . . . Parts Damaged . | . . . . . . . . . . . . . . . . Bothacking | -11 -10 -10 -10 -9 -8 -8 -8 -7 -7 -6 -6 -6 -6 -5 -5 ------------ Run | Yrd Mat Min Exi Min Mat Gar Mat Fac Gar Fac Low Low Dat Pro Fac Used RIF Installer . | . . . . . . . . . . . . . . . . Robots Hacked . | . . . . . . . . . . . . . . . . Non-combat . | . . . . . . . . . . . . . . . . Combat . | . . . . . . . . . . . . . . . . Robot Hacks Applied . | . . . . . . . . . . . . . . . . Relay Couplers Released 43 | . . . . . . 18 . . 25 . . . . . . Machine Destruction 43 | . . . . . . 18 . . 25 . . . . . . Fabnet Peak Effective % . | . . . . . . . . . . . . . . . . Robots Rewired 12 | . . . . . . 2 . . 3 . 2 5 . . . Allies Hacked . | . . . . . . . . . . . . . . . . Hacks Repelled . | . . . . . . . . . . . . . . . . Allies | -11 -10 -10 -10 -9 -8 -8 -8 -7 -7 -6 -6 -6 -6 -5 -5 -------- Run | Yrd Mat Min Exi Min Mat Gar Mat Fac Gar Fac Low Low Dat Pro Fac Total Allies 19 | . . . . 3 . 3 . . 5 . 2 5 . . 1 Largest Group 5 | . . . . 3 3 2 . . 5 . 2 4 . . 1 Highest-Rated Group 244 | . . . . 40 40 36 . . 244 . 60 116 . . 26 Highest-Rated Ally 95 | . . . . 16 16 21 . . 95 . 30 30 . . 26 Initial Warlord ECA Mod 18 | . . . . . . . 10 9 9 18 18 18 18 17 17 Warlord Squad Rendezvous 1 | . . . . . . . . . . . . . . . 1 Muscle 1 | . . . . . . . . . . . . . . . 1 Total Orders 1 | . . . . . . . . . . . . . . . 1 EXPLORE 1 | . . . . . . . . . . . . . . . 1 Ally Attacks 136 | . . . . . 32 29 . . 43 . 10 22 . . . Total Damage 2714 | . . . . . 299 564 . . 1274 . 249 328 . . . Kills 23 | . . . . . 4 10 . . 6 . 1 2 . . . Allies Corrupted 1 | . . . . . . . . . . . . 1 . . . Allies Melted . | . . . . . . . . . . . . . . . . Intel | -11 -10 -10 -10 -9 -8 -8 -8 -7 -7 -6 -6 -6 -6 -5 -5 ------- Run | Yrd Mat Min Exi Min Mat Gar Mat Fac Gar Fac Low Low Dat Pro Fac Active Infowar (turns) 3182 | . . . 98 1144 271 144 . 6 . 1077 . . . . 442 Sensors 1471 | . . . 98 1144 229 . . . . . . . . . . Structural 1207 | . . . . . 42 144 . . . 1021 . . . . . Cloaking 504 | . . . . . . . . 6 . 56 . . . . 442 Robot Analysis Total 3 | . 1 . . . . . 2 . . . . . . . . Derelict Logs Recovered 7 | . . . . 1 . . . . . . 1 2 . 3 . Drone Launches 26 | . . . . . . . . . . . . . . . 26 Drone Recoveries 11 | . . . . . . . . . . . . . . . 11 Exploration | -11 -10 -10 -10 -9 -8 -8 -8 -7 -7 -6 -6 -6 -6 -5 -5 ------------- Run | Yrd Mat Min Exi Min Mat Gar Mat Fac Gar Fac Low Low Dat Pro Fac Turns Passed 15273 | 56 1026 39 205 1144 271 1470 1180 152 2356 2345 1238 2134 119 634 904 Spaces Moved 11848 | 32 668 41 213 1033 213 981 871 122 1474 1905 1241 1520 96 481 957 Core 239 | 3 . . . . . . . . . . . . . . 236 Treads 404 | 29 371 . . . . . . . . . . . . . 4 Legs 2701 | . . . . . . 655 225 . . . . 976 96 481 268 Wheels 8055 | . 297 41 213 1033 213 326 646 122 1474 1905 1241 544 . . . Hover . | . . . . . . . . . . . . . . . . Flight 449 | . . . . . . . . . . . . . . . 449 Fastest Speed 40 | 50 95 95 95 95 80 95 90 105 90 86 86 86 120 120 40 Average Speed 100 | 149 131 95 95 95 94 114 98 105 98 91 86 118 120 121 66 Slowest Speed 260 | 160 160 95 95 95 95 125 120 120 105 120 101 196 120 190 260 Overloaded Moves . | . . . . . . . . . . . . . . . . Propulsion Burnouts . | . . . . . . . . . . . . . . . . Robots Hopped 8 | . . . . . . . . . . . . . . . 8 Potential Cave-ins . | . . . . . . . . . . . . . . . . Cave-ins Triggered . | . . . . . . . . . . . . . . . . Exploration Rate (%) 59 | 4 94 8 60 96 20 89 54 5 98 48 98 96 71 69 36 Regions Visited 15 Branch Regions 7 Pre-discovered Areas 3 | . . . . . . . . . . . 1 1 1 . . Known Exits Taken 7 | . . . . . 1 . . 1 . 1 1 1 1 1 . Unknown Exits Taken 6 | 1 1 1 1 1 . . 1 . . . . . . . . Scrap Searched 9 | . . . . 2 . . . . . . 3 3 . 1 . Spaces Dug 120 | . . . . 63 . 13 1 . 6 28 . . . . 9 Terrain Destroyed 658 | . 179 . . 130 9 18 44 . 75 115 11 26 . 7 44 Melee 4 | . . . . . . . . . 4 . . . . . . Projectile 94 | . . . . . 1 1 3 . 4 46 5 18 . 7 9 AOE 560 | . 179 . . 130 8 17 41 . 67 69 6 8 . . 35 Terrain Rammed . | . . . . . . . . . . . . . . . . Walls Destroyed . | . . . . . . . . . . . . . . . . Machines Disabled . | . . . . . . . . . . . . . . . . Actions | -11 -10 -10 -10 -9 -8 -8 -8 -7 -7 -6 -6 -6 -6 -5 -5 --------- Run | Yrd Mat Min Exi Min Mat Gar Mat Fac Gar Fac Low Low Dat Pro Fac Total 14168 | 37 759 40 215 1153 264 1214 1089 144 2021 2355 1358 1741 100 506 1172 Wait 1125 | . 20 . . 77 20 86 115 10 195 276 69 110 . 3 144 Move 11819 | 31 667 40 212 1032 213 980 870 122 1473 1904 1240 1519 95 480 941 Hop 8 | . . . . . . . . . . . . . . . 8 Pick Up 61 | . 13 . 1 4 5 4 5 1 8 11 4 3 . . 2 Fast Attach 120 | 6 5 . . 1 3 7 10 4 27 21 6 15 2 2 11 Attach 36 | . 1 . . 1 5 1 . 2 3 5 . 6 . 3 9 Detach 9 | . . . . . . 1 . 1 . . . 2 1 1 3 Swap 37 | . 6 . 1 5 3 5 5 . 2 7 3 . . . . Drop 113 | . 10 . 1 5 6 6 18 3 18 21 5 5 2 4 9 Fire 656 | . 37 . . 28 9 69 65 1 219 102 27 53 . 13 33 Melee 30 | . . . . . . . . . 30 . . . . . . Ram 6 | . . . . . . . . . . . . . . . 6 Kick 2 | . . . . . . . . . . . . . . . 2 Crush . | . . . . . . . . . . . . . . . . Escape Stasis 86 | . . . . . . 46 . . 32 8 . . . . . Rewire 53 | . . . . . . 9 . . 12 . 4 28 . . . Trap 3 | . . . . . . . 1 . 2 . . . . . . Miscellaneous 4 | . . . . . . . . . . . . . . . 4 Route ------- -11/Scrapyard -10/Materials (discovered 4 exits: [*Mat x3] / [*Min]) -10/Mines -10/Exiles -9/Mines (discovered 2 exits: *Mat x2) -8/Materials -8/Garrison (discovered 4 exits: *Mat x4) -8/Materials (discovered 2 exits: *Fac x2) -7/Factory -7/Garrison (discovered 3 exits: *Fac x3) -6/Factory (discovered 5 exits: *Fac x3 / *Low x2) -6/Lower Caves -6/Lower Caves (discovered 2 exits: *Fac / *Dat) -6/Data Miner -5/Proximity Caves -5/Factory (discovered 2 exits: [*Fac] / [*Upp]) History --------- Turn | Location | Event 23 | -11/Scrapyard | Discovered new exit (range 15) 57 | -11/Scrapyard | Entered Materials 297 | -10/Materials | Discovered new exit (range 13) 300 | -10/Materials | Build established: Mutant 333 | -10/Materials | Discovered new exit (range 8) 557 | -10/Materials | Derelicts attacked the area 925 | -10/Materials | Discovered new exit (range 12) 1009 | -10/Materials | Discovered new exit (range 16) 1083 | -10/Materials | Entered Mines 1118 | -10/Mines | Deemed a non-threat by the Exiles lab entrance 1118 | -10/Mines | Discovered new exit (range 5) 1122 | -10/Mines | Entered Exiles 1144 | -10/Exiles | Met 8R-AWN 1162 | -10/Exiles | Met EX-HEX 1190 | -10/Exiles | Met EX-BIN 1201 | -10/Exiles | Aligned with FarCom system 1202 | -10/Exiles | Given EX-Vault access code 1224 | -10/Exiles | Opened EX-Vault 1233 | -10/Exiles | Found Cloak of Protection 1252 | -10/Exiles | Warned to stay clear of 0b10 Research branches 1279 | -10/Exiles | Met EX-DEC 1314 | -10/Exiles | Discovered new exit (range 14) 1327 | -10/Exiles | Left Exiles lab with Cloak of Protection 1327 | -10/Exiles | Entered Mines 1362 | -9/Mines | Met a Derelict bent on vengeance 1375 | -9/Mines | Discovered new exit (range 16) 1624 | -9/Mines | Found a hidden stash of uninstalled traps 1639 | -9/Mines | Build established: Skirmisher 1652 | -9/Mines | Joined a pair of Derelicts in attacking an 0b10 outpost 1672 | -9/Mines | Learned Materials non-interactive machine intel 1972 | -9/Mines | Assisted by bots powering up and referring to "LRC-V3" 2049 | -9/Mines | Discovered new exit (range 11) 2471 | -9/Mines | Entered Materials 2471 | -8/Materials | Accompanied by 3 allies 2471 | -8/Materials | Evolved 4 slots: Propulsion x2, Utility x2 2472 | -8/Materials | Loaded intel: 42 non-interactive machine locations 2728 | -8/Materials | Identified exit to Garrison 2742 | -8/Materials | Entered Garrison 2742 | -8/Garrison | Accompanied by 1 ally 2792 | -8/Garrison | Learned Materials security intel 2822 | -8/Garrison | Triggered checkpoint 2835 | -8/Garrison | Garrison Relay disabled 2880 | -8/Garrison | Rescued a captive Derelict 2964 | -8/Garrison | Triggered checkpoint 3001 | -8/Garrison | Build established: Scavenger-Mutant 3058 | -8/Garrison | Triggered checkpoint 3319 | -8/Garrison | Discovered new exit (range 10) 3358 | -8/Garrison | Build established: Mutant 3375 | -8/Garrison | Garrison Relay disabled 3424 | -8/Garrison | Triggered checkpoint 3471 | -8/Garrison | Destroyed 8 combat bots 3474 | -8/Garrison | Triggered checkpoint 3508 | -8/Garrison | Triggered checkpoint 3534 | -8/Garrison | Discovered new exit (range 14) 3548 | -8/Garrison | Discovered new exit (range 6) 3624 | -8/Garrison | Triggered checkpoint 3778 | -8/Garrison | Triggered checkpoint 3808 | -8/Garrison | Garrison Relay disabled 3940 | -8/Garrison | Discovered new exit (range 78) 3940 | -8/Garrison | Discovered new exit (range 10) 3940 | -8/Garrison | Discovered new exit (range 60) 3940 | -8/Garrison | Discovered new exit (range 50) 4212 | -8/Garrison | Entered Materials 4645 | -8/Materials | Discovered new exit (range 15) 4893 | -8/Materials | Discovered new exit (range 9) 5392 | -8/Materials | Entered Factory 5392 | -7/Factory | Evolved 2 slots: Utility x1, Weapon x1 5544 | -7/Factory | Identified exit to Garrison 5544 | -7/Factory | Entered Garrison 5634 | -7/Garrison | Triggered checkpoint 5678 | -7/Garrison | Garrison Relay disabled 5697 | -7/Garrison | Build established: Hacker-Skirmisher 5740 | -7/Garrison | Triggered checkpoint 5792 | -7/Garrison | Triggered checkpoint 5812 | -7/Garrison | Triggered checkpoint 5828 | -7/Garrison | Triggered checkpoint 6264 | -7/Garrison | Discovered new exit (range 12) 6337 | -7/Garrison | Triggered checkpoint 6468 | -7/Garrison | Lost 4 parts (1p1u2w) 6503 | -7/Garrison | Garrison Relay disabled 6530 | -7/Garrison | Found embedded Infiltrators 6662 | -7/Garrison | Discovered new exit (range 10) 6690 | -7/Garrison | Triggered checkpoint 6707 | -7/Garrison | P-60 Hacker assimilated allied KK-BP5(g) 6742 | -7/Garrison | Lost 4 allies 6812 | -7/Garrison | Lost 8 parts (2n2u4w) 6958 | -7/Garrison | Garrison Relay disabled 7039 | -7/Garrison | Build established: Scavenger-Mutant 7137 | -7/Garrison | Spotted B-75 Beast 7355 | -7/Garrison | Destroyed B-75 Beast 7379 | -7/Garrison | Garrison Relay disabled 7460 | -7/Garrison | Triggered checkpoint 7475 | -7/Garrison | Garrison Relay disabled 7516 | -7/Garrison | Discovered new exit (range 5) 7702 | -7/Garrison | Build established: Scavenger-Tank 7783 | -7/Garrison | Garrison Relay disabled 7900 | -7/Garrison | Entered Factory 7900 | -6/Factory | Evolved 2 slots: Power x1, Propulsion x1 8155 | -6/Factory | Central database locked down 8221 | -6/Factory | Build established: Skirmisher 8802 | -6/Factory | Discovered new exit (range 6) 8810 | -6/Factory | Identified exit to Factory 8950 | -6/Factory | First assault squad dispatched 9011 | -6/Factory | Destroyed 7 combat bots 9016 | -6/Factory | Lost 3 parts (1n1u1w) 9233 | -6/Factory | Repaired Arm. Huge Wheel+ 9343 | -6/Factory | Discovered exit to Factory (range 6) 9584 | -6/Factory | Identified exit to Lower Caves 9698 | -6/Factory | Discovered exit to Factory (range 15) 9871 | -6/Factory | Build established: Hacker-Skirmisher 10245 | -6/Factory | Entered Lower Caves 10282 | -6/Lower Caves | Met a Warlord Commander 10283 | -6/Lower Caves | Learned location of Warlord (-4) 10284 | -6/Lower Caves | Warlord Commander delivered Encrypted Comm Array 10286 | -6/Lower Caves | Found Encrypted Comm Array 10512 | -6/Lower Caves | Encountered a Warlord checkpoint 10768 | -6/Lower Caves | Attracted the attention of an 0b10 outpost 10965 | -6/Lower Caves | Build established: Tank 10981 | -6/Lower Caves | Found DCF Scrap (12 items) 11052 | -6/Lower Caves | Entered an active Warlord outpost 11062 | -6/Lower Caves | Learned location of 1 exit from Research 11062 | -6/Lower Caves | Learned 8 Factory zone layouts 11062 | -6/Lower Caves | Learned Factory trap positions 11062 | -6/Lower Caves | Learned Armory emergency access door positions 11253 | -6/Lower Caves | Discovered new exit (range 12) 11332 | -6/Lower Caves | Identified exit to Lower Caves 11348 | -6/Lower Caves | Learned Factory terminal intel 11483 | -6/Lower Caves | Entered another Lower Caves area 11483 | -6/Lower Caves | Accompanied by 1 ally 11507 | -6/Lower Caves | Spotted B-75 Beast 11628 | -6/Lower Caves | Destroyed B-75 Beast 11651 | -6/Lower Caves | Lost 3 parts (1n1u1w) 11670 | -6/Lower Caves | Identified exit to Data Miner 11774 | -6/Lower Caves | Core integrity fell below 50% 12023 | -6/Lower Caves | Attracted the attention of an 0b10 checkpoint 12266 | -6/Lower Caves | Attacked by a delusional Derelict stockpiling Unaware 12310 | -6/Lower Caves | Build established: Bomber 12387 | -6/Lower Caves | Attracted the attention of an 0b10 outpost 12436 | -6/Lower Caves | Lost 3 allies 12825 | -6/Lower Caves | Lost 4 parts (1p1n2w) 13187 | -6/Lower Caves | Build established: Scavenger-Tank 13226 | -6/Lower Caves | Discovered exit to Factory (range 16) 13617 | -6/Lower Caves | Entered Data Miner 13619 | -6/Data Miner | Discovered new exit (range 6) 13642 | -6/Data Miner | Met Data Miner 13666 | -6/Data Miner | Learned location of Section 7 (-3) 13666 | -6/Data Miner | Acquired the access code to Warlord's prototype stash 13685 | -6/Data Miner | Received God Mode back door access code from Data Miner 13735 | -6/Data Miner | Identified exit to Proximity Caves 13736 | -6/Data Miner | Entered Proximity Caves 13764 | -5/Proximity Caves | Learned Factory terminal intel 14212 | -5/Proximity Caves | Build established: Scavenger-Mutant 14253 | -5/Proximity Caves | Learned Factory emergency access door positions 14260 | -5/Proximity Caves | Learned Factory garrison access intel 14330 | -5/Proximity Caves | Spotted B-75 Beast 14349 | -5/Proximity Caves | Discovered exit to Factory (range 16) 14370 | -5/Proximity Caves | Entered Factory 14370 | -5/Factory | Evolved 2 slots: Utility x2 14372 | -5/Factory | Loaded intel: 94 trap records 14374 | -5/Factory | Loaded intel: 28 terminal locations 14375 | -5/Factory | Loaded intel: 4 garrison access locations 14488 | -5/Factory | Fabricated Arm. Medium Treads? 14838 | -5/Factory | Lost 5 parts (2p2n1u) 14883 | -5/Factory | Core integrity fell below 50% 14903 | -5/Factory | Lost 10 parts (3n5u2w) 14944 | -5/Factory | Discovered new exit (range 53) 14944 | -5/Factory | Discovered new exit (range 49) 14949 | -5/Factory | Cargo convoy interrupted 14978 | -5/Factory | Incoming assault squad redirected 15008 | -5/Factory | Lost 11 allies 15131 | -5/Factory | Fabricated Lgt. Quantum Reactor? 15151 | -5/Factory | Build established: Hacker-Mutant 15209 | -5/Factory | Hacking Suite fried by hacking feedback 15236 | -5/Factory | Incoming investigation squad redirected 15251 | -5/Factory | Core integrity fell below 20% 15270 | -5/Factory | Joined by Warlord Muscle squad 15274 | -5/Factory | Destroyed by C-35 Carver with Carbide Saw Last Messages --------------- 15255_ FTWJ4MYMBR 15263_ C-35 Carver knocked back. 15263_ T-07 Excavator knocked back. 15264_ ALERT: Potential suspicious activity detected, Programmers report to Factory Zone 5B. 15264_ Triggered Segregator Trap. 15264_ Arcs of energy rise from the floor. 15270_ System corrupted: Energy discharge (-34). A squad of Warlord forces bursts forth from a hidden compartment. 15270_ BE-N2S(m) fits Backup Laser III on Cogmind. 15271_ YP-KXD(l): "WARLORD FOREVER!" 15271_ YP-KXD(l) suffers critical hit (Destroy). 15274_ BE-N2S(m) fits Backup Laser III on Cogmind. 15274_ Nuclear Pulse Array destroyed. Map ----- +----------------------------------------------------+ | ?????????????????????????????????????????????????? | | ??????????????????????????????????????+??????????? | | ?????????????????????????????????????????????????? | | ?????????????????????????????????????????+???????? | | ?????????????????????????????????????????????????? | | ?????????????????????????????????????????????????? | | ?????????????????????????????????????????????????? | | ?????????????????????????????????????????????????? | | ?????????????????????????????????????????????????? | | ?????????????????????????????????????????????????? | | ????????????????????????????+????????????????????? | | ?????????????????????????????????????????????????? | | ??????????????? ?????????????????+?????""??????? | | ??????????????# ???????????????????????"T??????? | | ??????????????# ???????????????????????""??????? | | ??????????????# ???????????????????????????????? | | ??????????????# ???????????????????????????????? | | ??????????????# ???????????????????????????????? | | ??????????????# ???????????????????????????????^ | | ??????????????# #??????????????????????????????^ | | ??????????????# #????????????+????????????????^? | | ??????????????# +??????????????????????????????? | | ??????????????# ###########????????????????????^ | | ??????????????# # m #???????????????????^? | | ??????????????# #] b #???????????????????^? | | ??????????????#n # @ #????????????????????? | | ??????????????+ ss c! #????????????????????? | | ?????######+#?# s# l #????????????????????? | | ????? !?# # #????????????????????? | | ???????* # # #????????????????????? | | ????????? # s# #????????????????????? | | ?????*?????? + ###########????????????????????? | | ??????????????#^^ #########??????????????????????? | | ??????????????# ???w???????????? | | ??????????????# #########??????????????????????? | | ??????????????# #??????????????????????????????? | | ??????????????#p #??????????????????????????????? | | ??????????????# #?????? #????????????????????? | | ??????????????# ???? #????????????????????? | | ??????????###?# = ??"" +????????????????????? | | ????#######T # * ""#????????????????????? | | ?? = !% T"#????????????????????? | | ???????######/ %== = ""#????????????????????? | | ???????# #????????????????????? | | ???????# ###########????????????????????? | | ???????# ????????^^??????????? | | ????!??# #######??????????????????????? | | ???????# # # ###?????????????????????????????? | | ???????## %###?#????????????????????????????????? | | ????????# #############????????????????????????? | +----------------------------------------------------+ Best States ------------- Heat Dissipation 59 Coolant Potential 65 Energy Generation 31 Energy Capacity 1100 Matter Stores 300 Matter Capacity 300 Sight Range 16 Robot Scan Range 14 Terrain Scan Density 10 Cloak Strength 5 Corruption Block 8 Armor Coverage 600 Resistance: TH 20 Core Shielding 30 Evasion (%) 62 Core Analysis 6 Recoil Reduction 2 Offensive Hacking 34 Defensive Hacking 10 Item Schematics ----------------- Combat Drone Bay | -6/Data Miner | Free Lgt. Regenerative Plating | -6/Data Miner | Free Enh. Armored Leg | -6/Data Miner | Free Exp. Heat Sink | -6/Data Miner | Free Imp. KE Penetrator | -6/Data Miner | Free Field Propulsion Array | -6/Data Miner | Free Nanoactuators | -6/Data Miner | Free Hvy. Gauss Cannon | -6/Data Miner | Free Imp. Point Defense System | -6/Data Miner | Free Imp. Thunder Leg | -6/Data Miner | Free Imp. Plasma Cutter | -6/Data Miner | Free Robot Schematics ------------------ B-48 Gladiator | -6/Data Miner | Free E-15 Imp | -6/Data Miner | Free G-50 Soldier | -6/Data Miner | Free A-15 Conveyor | -6/Data Miner | Free L-61 Swordsman | -6/Data Miner | Free Fabricated ------------ Arm. Medium Treads | x2 | -5/Factory | Preloaded Lgt. Quantum Reactor | x2 | -5/Factory | Preloaded Repaired ---------- Arm. Huge Wheel | 8% | -6/Factory Studied --------- Arm. Huge Wheel | -8/Materials | Hacked Imp. Proton Missile Launcher | -6/Factory | Hacked Alien Tech Used ----------------- None Achievements -------------- Bullet Installation My Business Is Booming Challenges ------------ None Game ------ Seed ScatterBoltReconstructor Manual? 0 Play Time 02:32:53 Cumulative 119.7 hours Start 2025.11.24 @ 20:54:02 End 2025.11.24 @ 23:27:50 Sessions 1 Manual Loads 0 Difficulty Rogue Special Mode None Game No. 61 Rogue 61 Adventurer 0 Explorer 0 Win Type - Total 1 Types 1/0/0/0/0/0/0/0/0/0 Lore% 58 Gallery% 57 Achievement% 44 Wizard Run 0 Options --------- Layout 1 ASCII 0 Keyboard 0 Movement Mouse Keybinds 0 Fullscreen 2 Font 32/SmallcapsGlow Map View 50x35 Zoom Use 0% Tactical HUD 1 Map Filters NONE Filters NONE Steam 1 RUN: 13816f4b-3dc8-45b6-9590-89bb33abedda